[Event "Titled Tuesday Blitz November 29 Early 2022"]
[White "Kulkarni, Vikramaditya"]
[Black "Tasev, Dejan"]
[WhiteFideId "5009847"]
[BlackFideId "936618"]
[WhiteElo "2273"]
[BlackElo "2256"]
[Result "1-0"]
[Round "05"]
[TimeControl "180+1"]
[Date "2022.11.30"]
[WhiteClock "0:00:58"]
[BlackClock "0:00:11"]

1. d4 {[%clk 0:03:00]}  Nf6 {[%clk 0:02:59]} 2. Nf3 {[%clk 0:03:00]}  e6 {[%clk 0:02:58]} 3. c4 {[%clk 0:02:59]}  d5 {[%clk 0:02:58]} 4. Nc3 {[%clk 0:02:58]}  Be7 {[%clk 0:02:57]} 5. cxd5 {[%clk 0:02:55]}  exd5 {[%clk 0:02:57]} 6. Bg5 {[%clk 0:02:55]}  c6 {[%clk 0:02:57]} 7. e3 {[%clk 0:02:55]}  O-O {[%clk 0:02:57]} 8. Bd3 {[%clk 0:02:55]}  Nbd7 {[%clk 0:02:57]} 9. O-O {[%clk 0:02:53]}  Re8 {[%clk 0:02:57]} 10. Qc2 {[%clk 0:02:52]}  Nf8 {[%clk 0:02:57]} 11. Rae1 {[%clk 0:02:51]}  g6 {[%clk 0:02:52]} 12. h3 {[%clk 0:02:42]}  Ne6 {[%clk 0:02:47]} 13. Bh6 {[%clk 0:02:38]}  Ng7 {[%clk 0:02:46]} 14. Bf4 {[%clk 0:02:35]}  Nf5 {[%clk 0:02:43]} 15. Ne5 {[%clk 0:02:33]}  Nd6 {[%clk 0:02:41]} 16. f3 {[%clk 0:02:31]}  a6 {[%clk 0:02:32]} 17. Kh1 {[%clk 0:02:25]}  Nh5 {[%clk 0:02:05]} 18. Bh2 {[%clk 0:02:23]}  Ng7 {[%clk 0:01:56]} 19. e4 {[%clk 0:02:18]}  dxe4 {[%clk 0:01:47]} 20. fxe4 {[%clk 0:02:18]}  Be6 {[%clk 0:01:38]} 21. d5 {[%clk 0:02:11]}  cxd5 {[%clk 0:01:35]} 22. exd5 {[%clk 0:02:11]}  Bc8 {[%clk 0:01:19]} 23. g4 {[%clk 0:01:53]}  f6 {[%clk 0:01:09]} 24. Nxg6 {[%clk 0:01:47]}  hxg6 {[%clk 0:01:09]} 25. Bxg6 {[%clk 0:01:47]}  Nf7 {[%clk 0:01:05]} 26. Bxf7+ {[%clk 0:01:17]}  Kxf7 {[%clk 0:01:03]} 27. g5 {[%clk 0:01:18]}  Bxh3 {[%clk 0:00:57]} 28. Qh7 {[%clk 0:01:07]}  Bg2+ {[%clk 0:00:12]} 29. Kxg2 {[%clk 0:01:05]}  Rf8 {[%clk 0:00:11]} 30. Rxf6+ {[%clk 0:00:58]}  Bxf6 {[%clk 0:00:11]} 31. g6# {[%clk 0:00:58]} 1-0


[Site "https://www.chess.com"]

[Event "Titled Tuesday Blitz November 29 Early 2022"]
[White "Kvaloy, Aksel Bu"]
[Black "Ambartsumova, Karina"]
[WhiteFideId "1528815"]
[BlackFideId "4166299"]
[WhiteElo "2184"]
[BlackElo "2319"]
[Result "1/2-1/2"]
[Round "05"]
[TimeControl "180+1"]
[Date "2022.11.30"]
[WhiteClock "0:00:18"]
[BlackClock "0:00:10"]

1. e4 {[%clk 0:02:54]}  e5 {[%clk 0:02:59]} 2. Nf3 {[%clk 0:02:51]}  Nc6 {[%clk 0:02:57]} 3. d4 {[%clk 0:02:51]}  exd4 {[%clk 0:02:56]} 4. Bc4 {[%clk 0:02:51]}  Nf6 {[%clk 0:02:51]} 5. e5 {[%clk 0:02:50]}  d5 {[%clk 0:02:49]} 6. Bb5 {[%clk 0:02:50]}  Ne4 {[%clk 0:02:46]} 7. Nxd4 {[%clk 0:02:48]}  Bd7 {[%clk 0:02:46]} 8. Bxc6 {[%clk 0:02:48]}  bxc6 {[%clk 0:02:45]} 9. O-O {[%clk 0:02:48]}  Be7 {[%clk 0:02:29]} 10. f3 {[%clk 0:02:46]}  Nc5 {[%clk 0:02:20]} 11. Be3 {[%clk 0:02:46]}  O-O {[%clk 0:02:16]} 12. f4 {[%clk 0:02:46]}  f6 {[%clk 0:02:12]} 13. Nd2 {[%clk 0:02:25]}  fxe5 {[%clk 0:02:05]} 14. fxe5 {[%clk 0:02:26]}  Rxf1+ {[%clk 0:02:03]} 15. Qxf1 {[%clk 0:02:23]}  Bg5 {[%clk 0:02:01]} 16. Bxg5 {[%clk 0:02:18]}  Qxg5 {[%clk 0:02:02]} 17. N2f3 {[%clk 0:02:18]}  Qe3+ {[%clk 0:02:01]} 18. Qf2 {[%clk 0:02:15]}  Qxf2+ {[%clk 0:01:52]} 19. Kxf2 {[%clk 0:02:15]}  Ne4+ {[%clk 0:01:52]} 20. Ke3 {[%clk 0:02:14]}  c5 {[%clk 0:01:47]} 21. Nb3 {[%clk 0:02:10]}  Bc6 {[%clk 0:01:41]} 22. Na5 {[%clk 0:02:05]}  d4+ {[%clk 0:01:28]} 23. Kd3 {[%clk 0:01:59]}  Bd5 {[%clk 0:01:10]} 24. c4 {[%clk 0:01:58]}  Nf2+ {[%clk 0:00:58]} 25. Ke2 {[%clk 0:01:56]}  Bxf3+ {[%clk 0:00:55]} 26. Kxf2 {[%clk 0:01:34]}  Be4 {[%clk 0:00:51]} 27. Nb3 {[%clk 0:01:30]}  Re8 {[%clk 0:00:36]} 28. Nxc5 {[%clk 0:01:29]}  Rxe5 {[%clk 0:00:36]} 29. Nxe4 {[%clk 0:01:09]}  Rxe4 {[%clk 0:00:37]} 30. c5 {[%clk 0:01:06]}  d3 {[%clk 0:00:34]} 31. Rd1 {[%clk 0:01:04]}  Re2+ {[%clk 0:00:34]} 32. Kf3 {[%clk 0:01:03]}  Rxb2 {[%clk 0:00:32]} 33. Rxd3 {[%clk 0:01:03]}  Rxa2 {[%clk 0:00:33]} 34. Rd8+ {[%clk 0:01:02]}  Kf7 {[%clk 0:00:32]} 35. Rd7+ {[%clk 0:01:03]}  Kf6 {[%clk 0:00:33]} 36. Rxc7 {[%clk 0:01:03]}  a5 {[%clk 0:00:31]} 37. c6 {[%clk 0:00:59]}  h5 {[%clk 0:00:30]} 38. h4 {[%clk 0:00:50]}  Rc2 {[%clk 0:00:26]} 39. g3 {[%clk 0:00:47]}  Rc3+ {[%clk 0:00:23]} 40. Kf4 {[%clk 0:00:46]}  Rc4+ {[%clk 0:00:23]} 41. Kf3 {[%clk 0:00:46]}  a4 {[%clk 0:00:24]} 42. Ra7 {[%clk 0:00:45]}  Rxc6 {[%clk 0:00:16]} 43. Rxa4 {[%clk 0:00:44]}  Kg6 {[%clk 0:00:16]} 44. Rf4 {[%clk 0:00:40]}  Re6 {[%clk 0:00:15]} 45. Kg2 {[%clk 0:00:40]}  Re7 {[%clk 0:00:15]} 46. Kh3 {[%clk 0:00:40]}  Re3 {[%clk 0:00:15]} 47. Rf2 {[%clk 0:00:39]}  Ra3 {[%clk 0:00:15]} 48. Rf4 {[%clk 0:00:39]}  Kh6 {[%clk 0:00:16]} 49. Rb4 {[%clk 0:00:37]}  Ra6 {[%clk 0:00:14]} 50. Kg2 {[%clk 0:00:36]}  Rc6 {[%clk 0:00:14]} 51. Rb8 {[%clk 0:00:36]}  Kg6 {[%clk 0:00:14]} 52. Rh8 {[%clk 0:00:36]}  Rc2+ {[%clk 0:00:14]} 53. Kf3 {[%clk 0:00:36]}  Rc3+ {[%clk 0:00:14]} 54. Kf4 {[%clk 0:00:37]}  Rc4+ {[%clk 0:00:15]} 55. Kf3 {[%clk 0:00:36]}  Rc5 {[%clk 0:00:15]} 56. Ra8 {[%clk 0:00:28]}  Rc3+ {[%clk 0:00:15]} 57. Kf4 {[%clk 0:00:27]}  Rc6 {[%clk 0:00:15]} 58. Ra5 {[%clk 0:00:26]}  Rf6+ {[%clk 0:00:15]} 59. Ke3 {[%clk 0:00:25]}  Kh6 {[%clk 0:00:14]} 60. Rg5 {[%clk 0:00:24]}  Rf1 {[%clk 0:00:13]} 61. Ra5 {[%clk 0:00:22]}  Rf6 {[%clk 0:00:12]} 62. Ra8 {[%clk 0:00:18]}  Kg6 {[%clk 0:00:11]} 63. Rh8 {[%clk 0:00:17]}  Rf5 {[%clk 0:00:10]} 64. Ke4 {[%clk 0:00:17]}  Rf1 {[%clk 0:00:10]} 65. Ke3 {[%clk 0:00:17]}  Rf7 {[%clk 0:00:08]} 66. Ke4 {[%clk 0:00:17]}  Rf1 {[%clk 0:00:08]} 67. Ke3 {[%clk 0:00:17]}  Rf5 {[%clk 0:00:08]} 68. Ke4 {[%clk 0:00:17]}  Ra5 {[%clk 0:00:08]} 69. Ke3 {[%clk 0:00:16]}  Ra4 {[%clk 0:00:08]} 70. Kf3 {[%clk 0:00:16]}  Ra3+ {[%clk 0:00:08]} 71. Kf4 {[%clk 0:00:17]}  Ra4+ {[%clk 0:00:08]} 72. Kf3 {[%clk 0:00:17]}  Ra3+ {[%clk 0:00:09]} 73. Kf4 {[%clk 0:00:17]}  Ra4+ {[%clk 0:00:10]} 74. Kf3 {[%clk 0:00:18]} 1/2-1/2


[Site "https://www.chess.com"]

[Event "Titled Tuesday Blitz November 29 Early 2022"]
[White "Lauridsen, Jesper Morch"]
[Black "Sztokbant, Bernardo Vainzoff"]
[WhiteFideId "1401890"]
[BlackFideId "2115956"]
[WhiteElo "2262"]
[BlackElo "2228"]
[Result "0-1"]
[Round "05"]
[TimeControl "180+1"]
[Date "2022.11.30"]
[WhiteClock "0:00:06"]
[BlackClock "0:00:14"]

1. e4 {[%clk 0:02:57]}  c5 {[%clk 0:02:59]} 2. Nf3 {[%clk 0:02:56]}  d6 {[%clk 0:02:58]} 3. d4 {[%clk 0:02:55]}  cxd4 {[%clk 0:02:58]} 4. Nxd4 {[%clk 0:02:55]}  Nf6 {[%clk 0:02:58]} 5. Nc3 {[%clk 0:02:56]}  a6 {[%clk 0:02:57]} 6. Bc4 {[%clk 0:02:56]}  e6 {[%clk 0:02:57]} 7. Bb3 {[%clk 0:02:55]}  Be7 {[%clk 0:02:57]} 8. Bg5 {[%clk 0:02:54]}  b5 {[%clk 0:02:54]} 9. Qf3 {[%clk 0:02:52]}  Bb7 {[%clk 0:02:52]} 10. Bxe6 {[%clk 0:02:49]}  b4 {[%clk 0:02:43]} 11. Nd5 {[%clk 0:02:37]}  Bxd5 {[%clk 0:02:26]} 12. exd5 {[%clk 0:02:08]}  O-O {[%clk 0:02:20]} 13. Bh3 {[%clk 0:01:52]}  Re8 {[%clk 0:01:46]} 14. O-O {[%clk 0:01:47]}  Nbd7 {[%clk 0:01:16]} 15. Nc6 {[%clk 0:01:39]}  Qc7 {[%clk 0:01:16]} 16. Nxe7+ {[%clk 0:01:26]}  Rxe7 {[%clk 0:01:17]} 17. Bxd7 {[%clk 0:01:26]}  Rxd7 {[%clk 0:01:15]} 18. Bxf6 {[%clk 0:01:24]}  gxf6 {[%clk 0:01:15]} 19. Qxf6 {[%clk 0:01:21]}  Qxc2 {[%clk 0:01:15]} 20. Rac1 {[%clk 0:01:19]}  Qg6 {[%clk 0:01:14]} 21. Qd4 {[%clk 0:01:13]}  Rb8 {[%clk 0:01:10]} 22. Rfd1 {[%clk 0:01:11]}  Re7 {[%clk 0:01:06]} 23. Rd3 {[%clk 0:01:08]}  Re4 {[%clk 0:01:02]} 24. Qa7 {[%clk 0:00:46]}  Rbe8 {[%clk 0:01:02]} 25. h3 {[%clk 0:00:46]}  Re1+ {[%clk 0:01:01]} 26. Rxe1 {[%clk 0:00:41]}  Rxe1+ {[%clk 0:01:01]} 27. Kh2 {[%clk 0:00:40]}  Qxd3 {[%clk 0:01:02]} 28. Qb8+ {[%clk 0:00:38]}  Kg7 {[%clk 0:01:01]} 29. Qxd6 {[%clk 0:00:38]}  Qf5 {[%clk 0:00:28]} 30. f4 {[%clk 0:00:20]}  Rd1 {[%clk 0:00:24]} 31. Qxb4 {[%clk 0:00:17]}  Rxd5 {[%clk 0:00:21]} 32. Qc3+ {[%clk 0:00:15]}  Qf6 {[%clk 0:00:21]} 33. Qg3+ {[%clk 0:00:14]}  Qg6 {[%clk 0:00:20]} 34. Qc3+ {[%clk 0:00:13]}  Qf6 {[%clk 0:00:17]} 35. Qg3+ {[%clk 0:00:13]}  Kf8 {[%clk 0:00:17]} 36. Qa3+ {[%clk 0:00:12]}  Qd6 {[%clk 0:00:16]} 37. Qf3 {[%clk 0:00:12]}  Rd4 {[%clk 0:00:16]} 38. Qa8+ {[%clk 0:00:08]}  Kg7 {[%clk 0:00:17]} 39. Qa7 {[%clk 0:00:06]}  Qxf4+ {[%clk 0:00:15]} 40. g3 {[%clk 0:00:06]}  Qf2+ {[%clk 0:00:13]} 41. Kh1 {[%clk 0:00:06]}  Rd1# {[%clk 0:00:14]} 0-1


[Site "https://www.chess.com"]

[Event "Titled Tuesday Blitz November 29 Early 2022"]
[White "Le, Tuan Minh"]
[Black "Goltsev, Dmitry"]
[WhiteFideId "12401153"]
[BlackFideId "24176710"]
[WhiteElo "3017"]
[BlackElo "2762"]
[Result "1-0"]
[Round "05"]
[TimeControl "180+1"]
[Date "2022.11.30"]
[WhiteClock "0:00:46"]
[BlackClock "0:00:02"]

1. d4 {[%clk 0:03:00]}  Nf6 {[%clk 0:03:00]} 2. Nf3 {[%clk 0:03:00]}  e6 {[%clk 0:03:01]} 3. Bf4 {[%clk 0:03:00]}  d5 {[%clk 0:03:02]} 4. e3 {[%clk 0:03:00]}  c5 {[%clk 0:03:02]} 5. c3 {[%clk 0:03:00]}  Nc6 {[%clk 0:03:03]} 6. Nbd2 {[%clk 0:03:00]}  Bd6 {[%clk 0:03:02]} 7. Bg3 {[%clk 0:03:01]}  Qe7 {[%clk 0:03:01]} 8. Bb5 {[%clk 0:02:59]}  O-O {[%clk 0:03:01]} 9. Bxc6 {[%clk 0:02:59]}  bxc6 {[%clk 0:03:02]} 10. Qa4 {[%clk 0:03:00]}  Bd7 {[%clk 0:03:01]} 11. Bxd6 {[%clk 0:02:55]}  Qxd6 {[%clk 0:03:02]} 12. Qa3 {[%clk 0:02:56]}  Rfb8 {[%clk 0:02:55]} 13. O-O {[%clk 0:02:55]}  Rb5 {[%clk 0:02:53]} 14. b3 {[%clk 0:02:41]}  a5 {[%clk 0:02:46]} 15. Rfc1 {[%clk 0:02:30]}  a4 {[%clk 0:02:41]} 16. c4 {[%clk 0:02:27]}  dxc4 {[%clk 0:02:35]} 17. Rxc4 {[%clk 0:02:12]}  Qd5 {[%clk 0:02:23]} 18. Rxa4 {[%clk 0:02:02]}  Rxa4 {[%clk 0:02:19]} 19. Qxa4 {[%clk 0:02:03]}  cxd4 {[%clk 0:02:16]} 20. Qxd4 {[%clk 0:01:52]}  c5 {[%clk 0:02:11]} 21. Qc3 {[%clk 0:01:44]}  Bc6 {[%clk 0:01:42]} 22. h3 {[%clk 0:01:11]}  Qf5 {[%clk 0:01:27]} 23. Qe5 {[%clk 0:00:58]}  Qc2 {[%clk 0:01:15]} 24. a4 {[%clk 0:00:57]}  Rb7 {[%clk 0:01:10]} 25. a5 {[%clk 0:00:52]}  Bxf3 {[%clk 0:00:42]} 26. Nxf3 {[%clk 0:00:51]}  Ne4 {[%clk 0:00:30]} 27. a6 {[%clk 0:00:46]}  Rxb3 {[%clk 0:00:12]} 28. a7 {[%clk 0:00:46]}  Qxf2+ {[%clk 0:00:03]} 29. Kh2 {[%clk 0:00:46]}  g6 {[%clk 0:00:02]} 30. a8=Q+ {[%clk 0:00:46]} 1-0


[Site "https://www.chess.com"]

[Event "Titled Tuesday Blitz November 29 Early 2022"]
[White "Leve, Nitai"]
[Black "Tologon tegin, Semetei"]
[WhiteFideId "2006898"]
[BlackFideId "13800574"]
[WhiteElo "2144"]
[BlackElo "2282"]
[Result "1-0"]
[Round "05"]
[TimeControl "180+1"]
[Date "2022.11.30"]
[WhiteClock "0:00:09"]
[BlackClock "0:00:17"]

1. e4 {[%clk 0:03:00]}  e5 {[%clk 0:02:57]} 2. Nf3 {[%clk 0:02:57]}  Nc6 {[%clk 0:02:56]} 3. d4 {[%clk 0:02:45]}  exd4 {[%clk 0:02:57]} 4. c3 {[%clk 0:02:45]}  Nf6 {[%clk 0:02:54]} 5. e5 {[%clk 0:02:43]}  Ne4 {[%clk 0:02:53]} 6. Qe2 {[%clk 0:02:40]}  Nc5 {[%clk 0:02:32]} 7. cxd4 {[%clk 0:02:36]}  Ne6 {[%clk 0:02:32]} 8. d5 {[%clk 0:02:28]}  Ned4 {[%clk 0:02:25]} 9. Nxd4 {[%clk 0:02:23]}  Nxd4 {[%clk 0:02:25]} 10. Qe4 {[%clk 0:02:21]}  c5 {[%clk 0:02:12]} 11. Bd3 {[%clk 0:02:07]}  g6 {[%clk 0:02:06]} 12. Nc3 {[%clk 0:01:39]}  Bg7 {[%clk 0:02:05]} 13. d6 {[%clk 0:01:39]}  O-O {[%clk 0:02:01]} 14. Nd5 {[%clk 0:01:21]}  Rb8 {[%clk 0:01:39]} 15. O-O {[%clk 0:01:13]}  b5 {[%clk 0:01:36]} 16. Ne7+ {[%clk 0:01:10]}  Kh8 {[%clk 0:01:36]} 17. Bg5 {[%clk 0:01:05]}  Qa5 {[%clk 0:01:18]} 18. Qh4 {[%clk 0:00:51]}  Qb4 {[%clk 0:01:10]} 19. a3 {[%clk 0:00:32]}  Qa4 {[%clk 0:01:08]} 20. b4 {[%clk 0:00:26]}  Qb3 {[%clk 0:01:00]} 21. Be4 {[%clk 0:00:14]}  Bb7 {[%clk 0:00:59]} 22. Rab1 {[%clk 0:00:12]}  Qc4 {[%clk 0:00:55]} 23. Bxb7 {[%clk 0:00:09]}  Rxb7 {[%clk 0:00:54]} 24. bxc5 {[%clk 0:00:10]}  Ne2+ {[%clk 0:00:45]} 25. Kh1 {[%clk 0:00:10]}  Qxh4 {[%clk 0:00:45]} 26. Bxh4 {[%clk 0:00:11]}  Bxe5 {[%clk 0:00:46]} 27. Rbe1 {[%clk 0:00:08]}  f6 {[%clk 0:00:24]} 28. Rxe2 {[%clk 0:00:08]}  g5 {[%clk 0:00:24]} 29. Bg3 {[%clk 0:00:08]}  Bd4 {[%clk 0:00:25]} 30. Rc1 {[%clk 0:00:06]}  b4 {[%clk 0:00:22]} 31. axb4 {[%clk 0:00:06]}  Rxb4 {[%clk 0:00:23]} 32. h4 {[%clk 0:00:06]}  gxh4 {[%clk 0:00:19]} 33. Bh2 {[%clk 0:00:05]}  h3 {[%clk 0:00:18]} 34. gxh3 {[%clk 0:00:05]}  Kg7 {[%clk 0:00:18]} 35. Nf5+ {[%clk 0:00:05]}  Kg6 {[%clk 0:00:17]} 36. Nxd4 {[%clk 0:00:04]}  Rxd4 {[%clk 0:00:17]} 37. c6 {[%clk 0:00:05]}  dxc6 {[%clk 0:00:18]} 38. Rxc6 {[%clk 0:00:05]}  Rg8 {[%clk 0:00:17]} 39. Bg3 {[%clk 0:00:05]}  h6 {[%clk 0:00:17]} 40. Kg2 {[%clk 0:00:05]}  h5 {[%clk 0:00:18]} 41. h4 {[%clk 0:00:05]}  Kf5 {[%clk 0:00:18]} 42. Re7 {[%clk 0:00:04]}  Rxh4 {[%clk 0:00:17]} 43. d7 {[%clk 0:00:04]}  Rd4 {[%clk 0:00:18]} 44. Rc8 {[%clk 0:00:04]}  Rgg4 {[%clk 0:00:14]} 45. d8=Q {[%clk 0:00:03]}  Rxd8 {[%clk 0:00:15]} 46. Rxd8 {[%clk 0:00:04]}  h4 {[%clk 0:00:15]} 47. Rd5+ {[%clk 0:00:04]}  Kg6 {[%clk 0:00:14]} 48. Rdd7 {[%clk 0:00:05]}  Kh6 {[%clk 0:00:11]} 49. Rh7+ {[%clk 0:00:05]}  Kg6 {[%clk 0:00:12]} 50. Rhg7+ {[%clk 0:00:06]}  Kf5 {[%clk 0:00:13]} 51. Rxg4 {[%clk 0:00:06]}  Kxg4 {[%clk 0:00:13]} 52. Rd4+ {[%clk 0:00:06]}  Kf5 {[%clk 0:00:13]} 53. Rxh4 {[%clk 0:00:07]}  Ke6 {[%clk 0:00:13]} 54. Ra4 {[%clk 0:00:08]}  a5 {[%clk 0:00:14]} 55. Rxa5 {[%clk 0:00:08]}  f5 {[%clk 0:00:14]} 56. Kf3 {[%clk 0:00:08]}  f4 {[%clk 0:00:15]} 57. Kxf4 {[%clk 0:00:09]}  Kf6 {[%clk 0:00:16]} 58. Re5 {[%clk 0:00:09]}  Kf7 {[%clk 0:00:15]} 59. Kg5 {[%clk 0:00:09]}  Kf8 {[%clk 0:00:16]} 60. Kg6 {[%clk 0:00:09]}  Kg8 {[%clk 0:00:17]} 61. Re8# {[%clk 0:00:09]} 1-0


[Site "https://www.chess.com"]

[Event "Titled Tuesday Blitz November 29 Early 2022"]
[White "Lucas, Arthur"]
[Black "Riehle, Marco"]
[WhiteFideId "26093073"]
[BlackFideId "12904392"]
[WhiteElo "2251"]
[BlackElo "2462"]
[Result "0-1"]
[Round "05"]
[TimeControl "180+1"]
[Date "2022.11.30"]
[WhiteClock "0:00:01"]
[BlackClock "0:01:26"]

1. e4 {[%clk 0:03:00]}  e5 {[%clk 0:02:56]} 2. Nf3 {[%clk 0:03:00]}  Nf6 {[%clk 0:02:56]} 3. d4 {[%clk 0:02:58]}  Nxe4 {[%clk 0:02:54]} 4. Bd3 {[%clk 0:02:57]}  Nc6 {[%clk 0:02:49]} 5. dxe5 {[%clk 0:02:49]}  Nc5 {[%clk 0:02:48]} 6. Nc3 {[%clk 0:02:46]}  d6 {[%clk 0:02:48]} 7. Bb5 {[%clk 0:02:15]}  Bg4 {[%clk 0:02:46]} 8. h3 {[%clk 0:02:12]}  Bh5 {[%clk 0:02:44]} 9. g4 {[%clk 0:02:04]}  Bg6 {[%clk 0:02:44]} 10. Qe2 {[%clk 0:01:58]}  Be7 {[%clk 0:02:42]} 11. Bf4 {[%clk 0:01:42]}  O-O {[%clk 0:02:39]} 12. O-O-O {[%clk 0:01:42]}  Nb4 {[%clk 0:02:26]} 13. Nd4 {[%clk 0:01:22]}  c6 {[%clk 0:02:25]} 14. Bc4 {[%clk 0:01:20]}  d5 {[%clk 0:02:24]} 15. Bb3 {[%clk 0:01:20]}  Nxb3+ {[%clk 0:02:11]} 16. axb3 {[%clk 0:01:18]}  Qa5 {[%clk 0:02:10]} 17. Kb1 {[%clk 0:01:01]}  c5 {[%clk 0:02:08]} 18. Nf5 {[%clk 0:00:58]}  Bxf5 {[%clk 0:02:08]} 19. gxf5 {[%clk 0:00:58]}  d4 {[%clk 0:02:08]} 20. Qb5 {[%clk 0:00:50]}  Qxb5 {[%clk 0:02:08]} 21. Nxb5 {[%clk 0:00:50]}  Rfd8 {[%clk 0:02:09]} 22. Rhg1 {[%clk 0:00:41]}  Bf8 {[%clk 0:02:07]} 23. Nc7 {[%clk 0:00:15]}  Rac8 {[%clk 0:02:06]} 24. e6 {[%clk 0:00:15]}  Nd5 {[%clk 0:02:00]} 25. Nxd5 {[%clk 0:00:15]}  Rxd5 {[%clk 0:02:01]} 26. f6 {[%clk 0:00:05]}  fxe6 {[%clk 0:02:01]} 27. fxg7 {[%clk 0:00:04]}  Bxg7 {[%clk 0:02:02]} 28. Bh6 {[%clk 0:00:03]}  Rc7 {[%clk 0:02:03]} 29. Rde1 {[%clk 0:00:02]}  e5 {[%clk 0:02:03]} 30. Rg5 {[%clk 0:00:01]}  Kf8 {[%clk 0:02:01]} 31. Bxg7+ {[%clk 0:00:02]}  Rxg7 {[%clk 0:02:02]} 32. Rgxe5 {[%clk 0:00:02]}  Rxe5 {[%clk 0:02:00]} 33. Rxe5 {[%clk 0:00:03]}  b6 {[%clk 0:02:00]} 34. b4 {[%clk 0:00:03]}  cxb4 {[%clk 0:01:56]} 35. Re4 {[%clk 0:00:03]}  Rd7 {[%clk 0:01:52]} 36. Kc1 {[%clk 0:00:03]}  a5 {[%clk 0:01:49]} 37. Kd2 {[%clk 0:00:04]}  a4 {[%clk 0:01:48]} 38. Kd3 {[%clk 0:00:04]}  a3 {[%clk 0:01:45]} 39. bxa3 {[%clk 0:00:03]}  bxa3 {[%clk 0:01:46]} 40. Re1 {[%clk 0:00:02]}  Kf7 {[%clk 0:01:45]} 41. Ra1 {[%clk 0:00:02]}  Ra7 {[%clk 0:01:45]} 42. Kxd4 {[%clk 0:00:02]}  Ke6 {[%clk 0:01:45]} 43. Kc4 {[%clk 0:00:03]}  Ke5 {[%clk 0:01:41]} 44. Kb3 {[%clk 0:00:02]}  Rf7 {[%clk 0:01:35]} 45. Rxa3 {[%clk 0:00:02]}  Rxf2 {[%clk 0:01:35]} 46. Ra7 {[%clk 0:00:01]}  Rf3+ {[%clk 0:01:35]} 47. c3 {[%clk 0:00:02]}  Rxh3 {[%clk 0:01:34]} 48. Rb7 {[%clk 0:00:02]}  Rh6 {[%clk 0:01:35]} 49. Kc4 {[%clk 0:00:03]}  Rc6+ {[%clk 0:01:31]} 50. Kd3 {[%clk 0:00:02]}  h6 {[%clk 0:01:30]} 51. Rf7 {[%clk 0:00:02]}  Rf6 {[%clk 0:01:29]} 52. Rh7 {[%clk 0:00:02]}  Kf4 {[%clk 0:01:28]} 53. Kd4 {[%clk 0:00:02]}  Kg5 {[%clk 0:01:27]} 54. Ke5 {[%clk 0:00:02]}  Rc6 {[%clk 0:01:27]} 55. Rg7+ {[%clk 0:00:03]}  Rg6 {[%clk 0:01:26]} 56. Rb7 {[%clk 0:00:02]}  h5 {[%clk 0:01:27]} 57. Ke4 {[%clk 0:00:01]}  Kg4 {[%clk 0:01:27]} 58. Ke3 {[%clk 0:00:01]}  Kg3 {[%clk 0:01:26]} 59. Rd7 {[%clk 0:00:01]}  h4 {[%clk 0:01:26]} 60. Rd1 {[%clk 0:00:01]}  Re6+ {[%clk 0:01:26]} 0-1


[Site "https://www.chess.com"]